Cogmind - Beta 13 @@@ ROGUE MODE // 2024.04.12 @ 13:41:38 Player: SovietPaperclip Result: Self-destructed Performance ------------- Evolutions (4) 2000 Regions Visited (14) 2800 Robots Destroyed (133) 665 Value Destroyed (3332) 3332 Prototype IDs (24) 480 Alien Tech Used (0) 0 Bonus (442) 442 TOTAL SCORE: 9719 Bonus ------- High Alert Combat Kills 67 Follower Combat Kills 75 Met Data Miner 300 Cogmind --------- Core Integrity 633/850 Matter 131/300 Energy 28/100 System Corruption 0% Temperature Cool (0) Movement Core (50) Location -6/Waste Parts ------- > --- POWER (1) -------- (None) > --- PROPULSION (6) --- (None) > --- UTILITY (6) ------ (None) > --- WEAPON (2) ------- (None) > --- INVENTORY (5) ---- Improved Cooling System Improved Particle Charger Cooled Plasma Cannon Heavy Linear Accelerator Peak State ------------ > --- POWER ------------ Micro Nuclear Core > --- PROPULSION ------- Airjet Gravmag System Gravmag System Cooled Airjet > --- UTILITY ---------- Large Storage Unit Gravity Neutralizer Improved Signal Interpreter Hacking Suite System Shield System Purifier > --- WEAPON ----------- Precision Grenade Launcher Impact Mace > --- INVENTORY -------- Light Angular Momentum Engine Improved Cooling System Improved Cooling System Matter Compressor Structural Scanner Improved Sensor Array Improved Sensor Array Matter Filter Improved Particle Charger Transmission Jammer Hacking Suite Hacking Suite Cooled Plasma Cannon Heavy Linear Accelerator [Rating: 61] Favorites ----------- Power Micro Nuclear Core Engine Light Ion Engine Power Core Micro Nuclear Core Reactor Cold Fusion Reactor Propulsion Gravmag System Treads Medium Treads Leg Aluminum Leg Wheel Wheel Hover Unit Gravmag System Utility Improved Signal Interpreter Device Improved Sensor Array Storage High-capacity Storage Unit Processor Improved Signal Interpreter Hackware Hacking Suite Protection Light Armor Plating Weapon Improved Assault Rifle Energy Cannon Heavy Particle Cannon Ballistic Gun Improved Assault Rifle Ballistic Cannon Gauss Cannon Launcher Precision Grenade Launcher Impact Weapon Power Maul Build | -11 -10 -10 -9 -9 -9 -8 -8 -7 -7 -7 -7 -6 -6 -6 ------- Run | Yrd Mat Min Mat Min Exi Min Mat Fac Low Low Dat Pro Fac Was Slots Evolved 8 | . . . 2 . . . 2 2 . . . . 2 . Power . | . . . . . . . . . . . . . . . Propulsion 4 | . . . . . . . 2 . . . . . 2 . Utility 4 | . . . 2 . . . . 2 . . . . . . Weapon . | . . . . . . . . . . . . . . . Parts Attached 158 | 6 4 3 14 1 . 2 25 72 1 . . 1 21 8 Power 12 | 1 . . 1 . . . 5 1 . . . . 3 1 Engine 5 | 1 . . 1 . . . 2 . . . . . . 1 Core 6 | . . . . . . . 3 1 . . . . 2 . Reactor 1 | . . . . . . . . . . . . . 1 . Propulsion 25 | 2 2 . 2 . . . 3 14 . . . . 1 1 Treads 1 | . . . . . . . . 1 . . . . . . Leg 2 | 2 . . . . . . . . . . . . . . Wheel 10 | . 2 . 2 . . . 3 3 . . . . . . Hover 12 | . . . . . . . . 10 . . . . 1 1 Flight . | . . . . . . . . . . . . . . . Utility 65 | 1 2 1 5 . . . 8 31 1 . . . 10 6 Device 38 | . . . 3 . . . 2 19 . . . . 9 5 Storage 4 | 1 1 . . . . . 1 1 . . . . . . Processor 4 | . . . . . . . 3 1 . . . . . . Hackware 5 | . . . . . . . . 2 1 . . . 1 1 Protection 14 | . 1 1 2 . . . 2 8 . . . . . . Artifact . | . . . . . . . . . . . . . . . Weapon 56 | 2 . 2 6 1 . 2 9 26 . . . 1 7 . Energy Gun . | . . . . . . . . . . . . . . . Energy Cannon 7 | . . . . . . . 1 5 . . . . 1 . Ballistic Gun 15 | 2 . 2 4 1 . 1 5 . . . . . . . Ballistic Cannon 14 | . . . . . . . . 11 . . . 1 2 . Launcher 9 | . . . 2 . . 1 3 1 . . . . 2 . Special Weapon . | . . . . . . . . . . . . . . . Impact Weapon 11 | . . . . . . . . 9 . . . . 2 . Slashing Weapon . | . . . . . . . . . . . . . . . Piercing Weapon . | . . . . . . . . . . . . . . . Special Melee Weapon . | . . . . . . . . . . . . . . . Unidentified Prototypes 11 | . . . 1 . . . 4 2 . . . . 3 1 Parts Lost 35 | . . 1 7 . . . 10 7 . . . . 3 7 Power 5 | . . . 1 . . . 2 . . . . . 1 1 Propulsion 13 | . . . 2 . . . 3 5 . . . . 1 2 Utility 14 | . . 1 3 . . . 4 2 . . . . 1 3 Weapon 3 | . . . 1 . . . 1 . . . . . . 1 Highest Loss Streak 7 | . . 1 4 . . . 4 2 . . . . 3 7 To Critical Strikes . | . . . . . . . . . . . . . . . Average Slot Usage (%) 84 | . 94 98 88 100 100 100 75 88 92 92 92 92 76 79 Engine 4 | . 14 14 8 11 11 11 2 2 . . . . . 3 Core 4 | . . . . . . . 6 4 7 7 7 7 5 2 Wheel 9 | . 21 28 19 22 22 22 14 3 . . . . . . Hover 10 | . . . . . . . . 17 30 30 30 30 21 22 Device 9 | . . . 9 11 11 11 8 13 7 7 7 7 10 13 Storage 8 | . 14 14 11 11 11 11 9 7 7 7 7 7 6 5 Processor 10 | . . . . . . . 13 15 15 15 15 15 10 6 Hackware 4 | . . . . . . . . 5 15 15 15 15 10 13 Protection 5 | . 8 12 16 22 22 22 2 3 . . . . . . Energy Cannon 1 | . . . . . . . . 5 . . . . . . Ballistic Gun 9 | . 28 27 19 22 22 22 17 . . . . . . . Impact Weapon 2 | . . . . . . . . 4 7 7 7 7 6 5 Naked Turns . | . . . . . . . . . . . . . . . Heaviest Build 106 | 11 51 52 55 56 56 56 100 106 30 30 30 30 38 39 Greatest Support 46 | 20 26 26 26 26 26 26 30 36 35 35 35 35 35 46 Greatest Overweight (x) 17 | . 1 1 3 2 2 2 17 10 . . . . 1 1 Average Overweight (x) 1 | . . 1 1 2 2 2 3 . . . . . . . Largest Inventory Capacity 25 | 8 20 20 20 20 20 20 25 25 15 15 15 15 15 15 Average Capacity 18 | 6 17 20 20 20 20 20 20 19 15 15 15 15 15 14 Most Carried 20 | 4 8 12 12 12 11 14 20 20 15 14 14 14 15 15 Average Carried 13 | . 4 10 8 11 11 12 16 15 13 14 14 13 14 14 Final Capacity 25 | 8 20 20 20 20 20 20 25 15 15 15 15 15 15 5 Final Carried 18 | 1 8 12 12 11 11 13 18 13 14 14 14 14 15 5 Class Distribution -------------------- 36% | Mutant 24% | Scavenger-Mutant 20% | Hacker-Mutant 10% | Scavenger-Scout 4% | Assassin 3% | Hacker-Assassin Dominant Class ---------------- Mutant | -10/Materials Mutant | -10/Mines Scavenger-Mutant | -9/Materials Scavenger-Mutant | -9/Mines Scavenger-Mutant | -9/Exiles Scavenger-Mutant | -8/Mines Mutant | -8/Materials Scavenger-Scout | -7/Factory Hacker-Mutant | -7/Lower Caves Hacker-Mutant | -7/Lower Caves Hacker-Mutant | -7/Data Miner Hacker-Mutant | -6/Proximity Caves Hacker-Mutant | -6/Factory Hacker-Mutant | -6/Waste Resources | -11 -10 -10 -9 -9 -9 -8 -8 -7 -7 -7 -7 -6 -6 -6 ----------- Run | Yrd Mat Min Mat Min Exi Min Mat Fac Low Low Dat Pro Fac Was Matter Collected 3620 | 260 295 156 351 . . 67 1033 815 65 . . 12 566 . Remotely . | . . . . . . . . . . . . . . . Salvage Created 5106 | . 366 191 552 . . 61 1576 1833 . . . 6 521 . Parts 278 | . 24 14 29 . . 12 93 79 . . . 3 24 . Haulers Intercepted 17 | . 2 . 4 . . . 5 3 . . . . 3 . Recyclers Shooed 6 | . 1 . . . . . 2 3 . . . . . . Parts Field Recycled . | . . . . . . . . . . . . . . . Retrieved Matter . | . . . . . . . . . . . . . . . Parts Self-Destructed 3 | . . . . . . . . . . . . 3 . . Prevented . | . . . . . . . . . . . . . . . Kills | -11 -10 -10 -9 -9 -9 -8 -8 -7 -7 -7 -7 -6 -6 -6 ------- Run | Yrd Mat Min Mat Min Exi Min Mat Fac Low Low Dat Pro Fac Was Combat Hostiles Destroyed 72 | . 4 4 9 . . 5 22 18 . . . 2 8 . Guns 32 | . 4 4 4 . . 2 18 . . . . . . . Cannons 19 | . . . . . . . . 17 . . . 2 . . AOE 20 | . . . 5 . . 3 4 . . . . . 8 . Classes Destroyed 13 | . 5 1 . . . 2 1 3 . . . 1 . . Worker 14 | . 1 . . . . . 3 6 . . . . 4 . Builder 5 | . . . . . . . 3 2 . . . . . . Hauler 17 | . 2 . 4 . . . 5 3 . . . . 3 . Recycler 10 | . 1 . . . . . 1 7 . . . . 1 . Mechanic 1 | . . . . . . . . 1 . . . . . . Operator 3 | . . . . . . . . 2 . . . . 1 . Drone 2 | . . . . . . . . . . . . 2 . . Watcher 11 | . 1 . 1 . . . 4 5 . . . . . . Swarmer 18 | . . . . . . 4 6 . . . . . 8 . Grunt 27 | . 4 2 8 . . . 6 7 . . . . . . Sentry 14 | . . 2 1 . . . 8 3 . . . . . . Hunter 5 | . . . . . . 1 2 2 . . . . . . Programmer 6 | . . . . . . . . 6 . . . . . . Best Kill Streak 7 | . 6 2 4 . . 4 4 3 . . . 2 7 . Combat Bots Only 4 | . 4 2 4 . . 4 4 3 . . . 2 4 . Max Kills in Single Turn 4 | . 1 1 3 . . 3 2 2 . . . 1 4 . Gunslinging . | . . . . . . . . . . . . . . . Exploded 3 | . . . 3 . . 3 2 . . . . . 2 . Melee . | . . . . . . . . . . . . . . . Uniques/NPCs Destroyed . | . . . . . . . . . . . . . . . Combat | -11 -10 -10 -9 -9 -9 -8 -8 -7 -7 -7 -7 -6 -6 -6 -------- Run | Yrd Mat Min Mat Min Exi Min Mat Fac Low Low Dat Pro Fac Was Hostile Shots Fired 447 | . 28 20 47 . . 19 110 188 . 2 . . 27 6 Missed 115 | . 7 6 9 . . 5 23 56 . . . . 8 1 Damage Taken 4432 | . 288 194 622 . . 180 1259 1337 . 32 . . 297 223 Core 1041 | . 65 42 165 . . 38 231 251 . 32 . . 63 154 Absorbed by Shields . | . . . . . . . . . . . . . . . Redirected to Shielding 51 | . . . . . . . . 51 . . . . . . Core Remaining (%) 64 | 100 . 57 . . . 49 58 . . . . 59 . . Volleys Fired 290 | . 30 13 40 . . 8 116 69 . . . 2 12 . Largest 2 | . 2 2 2 . . 2 2 2 . . . 1 1 . Hottest 150 | . 40 46 53 . . 53 53 150 . . . 48 48 . Shots Fired 551 | . 60 26 79 . . 16 229 127 . . . 2 12 . Gun 401 | . 60 26 74 . . 15 226 . . . . . . . Cannon 134 | . . . . . . . . 127 . . . 2 5 . Launcher 16 | . . . 5 . . 1 3 . . . . . 7 . Special . | . . . . . . . . . . . . . . . Kinetic 443 | . 60 26 74 . . 15 226 35 . . . 2 5 . Thermal 92 | . . . . . . . . 92 . . . . . . Explosive 16 | . . . 5 . . 1 3 . . . . . 7 . Electromagnetic . | . . . . . . . . . . . . . . . Robot Hit Streak 35 | . 11 11 6 . . 5 18 35 . . . 3 2 . Robot Miss Streak 5 | . 2 3 5 . . 2 3 3 . . . . 3 . Penetration Max . | . . . . . . . . . . . . . . . Secondary Targets 2 | . 1 . 1 . . . . . . . . . . . Max Gunslinging Chain 1 | . 1 . 1 . . . . . . . . . . . Shots Hit Robots 389 | . 44 18 49 . . 8 160 99 . . . 2 9 . Core Hits 179 | . 18 8 23 . . 9 63 40 . . . 2 16 . Critical Kills 6 | . . . . . . . 1 4 . . . . 1 . Critical Parts Destroyed 6 | . . . . . . . 1 2 . . . . 3 . Critical Strikes 14 | . . . . . . . 2 8 . . . . 4 . Meltdown 1 | . . . . . . . . 1 . . . . . . Destroy 2 | . . . . . . . 2 . . . . . . . Blast 2 | . . . . . . . . 2 . . . . . . Smash 9 | . . . . . . . . 5 . . . . 4 . Melee Attacks 71 | . . . . . . . . 55 . . . . 16 . Impact 71 | . . . . . . . . 55 . . . . 16 . Slashing . | . . . . . . . . . . . . . . . Piercing . | . . . . . . . . . . . . . . . Sneak Attacks 19 | . . . . . . . . 12 . . . . 7 . Combat Hostiles . | . . . . . . . . . . . . . . . Follow-up Attacks . | . . . . . . . . . . . . . . . Damage Inflicted 9962 | . 476 220 898 . . 309 2670 3877 . . . 53 1459 . Guns 3959 | . 476 220 658 . . 101 2504 . . . . . . . Cannons 2444 | . . . . . . . . 2361 . . . 53 30 . Explosions 1217 | . . . 240 . . 208 154 . . . . . 615 . Melee 2330 | . . . . . . . . 1516 . . . . 814 . Ramming 12 | . . . . . . . 12 . . . . . . . Kinetic 4657 | . 476 220 658 . . 101 2504 615 . . . 53 30 . Thermal 1876 | . . . . . . 130 . 1746 . . . . . . Explosive 1087 | . . . 240 . . 78 154 . . . . . 615 . Electromagnetic . | . . . . . . . . . . . . . . . Impact 2330 | . . . . . . . . 1516 . . . . 814 . Slashing . | . . . . . . . . . . . . . . . Piercing . | . . . . . . . . . . . . . . . Highest Corruption 3 | . 2 2 . . . . . 3 3 3 3 3 1 . Average Corruption 2 | . 2 2 . . . . . 1 3 3 3 3 1 . Corruption Purged 3 | . . . . . . . . 2 . . . . 1 . Corruption Blocked . | . . . . . . . . . . . . . . . Effects 31 | . . 4 . . . . . 20 1 3 1 2 . . Message Errors 8 | . . 2 . . . . . 5 . . . 1 . . Matter Fused 10 | . . . . . . . . 8 . 2 . . . . Heat Flow Errors 3 | . . . . . . . . 3 . . . . . . Energy Discharges 5 | . . 2 . . . . . 2 1 . . . . . Data Loss (minor) 3 | . . . . . . . . 1 . 1 1 . . . Data Loss (major) 2 | . . . . . . . . 1 . . . 1 . . Overload Shots . | . . . . . . . . . . . . . . . Overflow Damage 1523 | . . . . . . 29 . 943 . . . . 551 . Projectiles 66 | . . . . . . . . 66 . . . . . . Explosions 51 | . . . . . . 29 . . . . . . 22 . Melee 1406 | . . . . . . . . 877 . . . . 529 . Knockbacks 10 | . . . . . . . . 9 . . . . 1 . Impact 5 | . . . . . . . . 4 . . . . 1 . Kinetic 4 | . . . . . . . . 4 . . . . . . Secondary 1 | . . . . . . . . 1 . . . . . . Self-Inflicted Damage 135 | . . . 116 . . 13 6 . . . . . . . Shots 4 | . . . 3 . . 1 . . . . . . . . Rammed 1 | . . . . . . . 1 . . . . . . . Targets Rammed 1 | . . . . . . . 1 . . . . . . . Kicked . | . . . . . . . . . . . . . . . Crushed . | . . . . . . . . . . . . . . . Highest Temperature 375 | . 57 27 7 . . . 71 375 . . . . . . Average Temperature 64 | . 29 13 2 . . . 24 90 . . . . . . Received Heat Transfer 1173 | . 183 96 246 . . . 369 270 . 9 . . . . Effects 2 | . . . . . . . . 2 . . . . . . Shutdowns 1 | . . . . . . . . 1 . . . . . . Energy Bleed 1 | . . . . . . . . 1 . . . . . . Siege Activations . | . . . . . . . . . . . . . . . Robots Corrupted . | . . . . . . . . . . . . . . . Combat Hostiles . | . . . . . . . . . . . . . . . Parts Fried 19 | . . . . . . . . 16 . . . . 3 . Impact Corruptions 39 | . . . . . . . . 27 . . . . 12 . Robots Melted 1 | . . . . . . . . 1 . . . . . . Combat Hostiles 1 | . . . . . . . . 1 . . . . . . Parts Melted 9 | . . . . . . . . 9 . . . . . . Heat Transferred 2592 | . . . . . . 150 . 2442 . . . . . . Parts Sabotaged . | . . . . . . . . . . . . . . . Parts Stolen . | . . . . . . . . . . . . . . . Parts Stripped . | . . . . . . . . . . . . . . . Power Chain Reactions . | . . . . . . . . . . . . . . . Alert | -11 -10 -10 -9 -9 -9 -8 -8 -7 -7 -7 -7 -6 -6 -6 ------- Run | Yrd Mat Min Mat Min Exi Min Mat Fac Low Low Dat Pro Fac Was Peak Influence 444 | . 81 115 188 16 . 161 444 387 . . . . 268 74 Initial 182 | . . 19 44 16 . . 62 182 . . . . 156 44 Average 187 | . 26 66 75 16 . 138 261 258 . . . . 98 53 Maximum Alert Level 2 | . . . . . . . 2 1 . . . . 1 . Low Security (%) 45 | 100 100 100 100 100 . 100 33 9 . . . . 68 100 Level 1 50 | . . . . . . . 51 90 . . . . 31 . Level 2 3 | . . . . . . . 15 . . . . . . . Level 3 . | . . . . . . . . . . . . . . . Level 4 . | . . . . . . . . . . . . . . . Level 5 . | . . . . . . . . . . . . . . . High Security . | . . . . . . . . . . . . . . . Max Security . | . . . . . . . . . . . . . . . Squads Dispatched 18 | . 1 . 2 . . . 2 11 . . . . 2 . Investigation 4 | . . . 1 . . . . 2 . . . . 1 . Extermination 6 | . . . . . . . . 6 . . . . . . Reinforcement 8 | . 1 . 1 . . . 2 3 . . . . 1 . Assault . | . . . . . . . . . . . . . . . Garrison . | . . . . . . . . . . . . . . . Intercept . | . . . . . . . . . . . . . . . Searches Triggered . | . . . . . . . . . . . . . . . Construction Impeded 2 | . . . . . . . 1 1 . . . . . . Haulers Reinforced . | . . . . . . . . . . . . . . . Active Scanning Responses . | . . . . . . . . . . . . . . . Cargo Convoy Interrupts . | . . . . . . . . . . . . . . . Stealth | -11 -10 -10 -9 -9 -9 -8 -8 -7 -7 -7 -7 -6 -6 -6 --------- Run | Yrd Mat Min Mat Min Exi Min Mat Fac Low Low Dat Pro Fac Was Distress Signals 4 | . 2 . . . . . 2 . . . . . . . Communications Jammed . | . . . . . . . . . . . . . . . Distress Signals . | . . . . . . . . . . . . . . . Times Spotted 110 | . 7 4 12 . . 4 27 32 . 3 . 2 13 6 Peak Tracking Total 6 | . 6 2 4 . . 4 6 4 . 3 . 2 4 6 Tactical Retreats 5 | . . . . . . . 2 3 . . . . . . Traps | -11 -10 -10 -9 -9 -9 -8 -8 -7 -7 -7 -7 -6 -6 -6 ------- Run | Yrd Mat Min Mat Min Exi Min Mat Fac Low Low Dat Pro Fac Was Traps Triggered 4 | . 1 . . . . . . 1 . . . . 2 . Indirectly . | . . . . . . . . . . . . . . . Trap Hack Attempts . | . . . . . . . . . . . . . . . Triggered . | . . . . . . . . . . . . . . . Disarmed 1 | . . . . . . . 1 . . . . . . . Reprogrammed . | . . . . . . . . . . . . . . . Reused . | . . . . . . . . . . . . . . . Traps Extracted . | . . . . . . . . . . . . . . . Installed . | . . . . . . . . . . . . . . . Triggered . | . . . . . . . . . . . . . . . Machines | -11 -10 -10 -9 -9 -9 -8 -8 -7 -7 -7 -7 -6 -6 -6 ---------- Run | Yrd Mat Min Mat Min Exi Min Mat Fac Low Low Dat Pro Fac Was Machines Disabled 6 | . . . . . . 1 1 3 . . . . 1 . Max in Single Turn 1 | . . . . . . 1 1 1 . . . . 1 . Garrison Access 2 | . . . . . . . 1 . . . . . 1 . Machines Repaired . | . . . . . . . . . . . . . . . Machines Dismantled . | . . . . . . . . . . . . . . . Machines Sabotaged . | . . . . . . . . . . . . . . . Overloaded Fab Kills . | . . . . . . . . . . . . . . . Hacking | -11 -10 -10 -9 -9 -9 -8 -8 -7 -7 -7 -7 -6 -6 -6 --------- Run | Yrd Mat Min Mat Min Exi Min Mat Fac Low Low Dat Pro Fac Was Machines Accessed 32 | . 1 . 2 . 1 . 6 11 . . 4 . 7 . Terminals 21 | . 1 . 2 . . . 5 8 . . . . 5 . Fabricators 2 | . . . . . . . . 1 . . . . 1 . Repair Stations . | . . . . . . . . . . . . . . . Recycling Units . | . . . . . . . . . . . . . . . Scanalyzers . | . . . . . . . . . . . . . . . Garrison Access 4 | . . . . . . . 1 2 . . . . 1 . Total Hacks 98 | . 5 . 5 . 1 . 16 26 . . 27 . 18 . Successful 64 | . 1 . 2 . 1 . 12 9 . . 27 . 12 . Failed 34 | . 4 . 3 . . . 4 17 . . . . 6 . Catastrophic 8 | . . . . . . . 1 6 . . . . 1 . Database Lockouts . | . . . . . . . . . . . . . . . Manual 37 | . 3 . 3 . . . 6 17 . . . . 8 . Terminals 61 | . 5 . 5 . . . 14 22 . . . . 15 . Fabricators 3 | . . . . . . . . 1 . . . . 2 . Repair Stations . | . . . . . . . . . . . . . . . Recycling Units . | . . . . . . . . . . . . . . . Scanalyzers . | . . . . . . . . . . . . . . . Garrison Access 6 | . . . . . . . 2 3 . . . . 1 . Terminal Hacks 46 | . . . 1 . 1 . 8 3 . . 27 . 6 . Record 12 | . . . . . 1 . . . . . 11 . . . Part Schematic 10 | . . . . . . . . . . . 9 . 1 . Robot Schematic 4 | . . . . . . . . . . . 4 . . . Prototype ID Bank 4 | . . . . . . . 1 . . . 3 . . . Level Access Points 2 | . . . . . . . 1 1 . . . . . . Branch Access Points 1 | . . . . . . . . 1 . . . . . . Emergency Access Points 1 | . . . . . . . 1 . . . . . . . Alert Level 1 | . . . . . . . 1 . . . . . . . Unreport Threat 3 | . . . 1 . . . . . . . . . 2 . Locate Traps 2 | . . . . . . . . . . . . . 2 . Disarm Traps 1 | . . . . . . . 1 . . . . . . . Hauler Manifests 2 | . . . . . . . 1 1 . . . . . . Registered Components 1 | . . . . . . . 1 . . . . . . . Zone Layout 2 | . . . . . . . 1 . . . . . 1 . Fabricator Hacks 3 | . . . . . . . . 1 . . . . 2 . Network Status 1 | . . . . . . . . 1 . . . . . . Load Schematic 1 | . . . . . . . . . . . . . 1 . Build 1 | . . . . . . . . . . . . . 1 . Repair Station Hacks . | . . . . . . . . . . . . . . . Recycling Unit Hacks . | . . . . . . . . . . . . . . . Scanalyzer . | . . . . . . . . . . . . . . . Garrison Access Hacks 2 | . . . . . . . 1 . . . . . 1 . Seal Access 2 | . . . . . . . 1 . . . . . 1 . Unauthorized Hacks 13 | . 1 . 1 . . . 3 5 . . . . 3 . Terminals 13 | . 1 . 1 . . . 3 5 . . . . 3 . Botnet 13 | . 1 . 1 . . . 3 5 . . . . 3 . Fabricators . | . . . . . . . . . . . . . . . Repair Stations . | . . . . . . . . . . . . . . . Recycling Units . | . . . . . . . . . . . . . . . Scanalyzers . | . . . . . . . . . . . . . . . Garrison Access . | . . . . . . . . . . . . . . . Data Cores Recovered 2 | . . . . . . . . 1 . . . . 1 . Used 1 | . . . . . . . . 1 . . . . . . Hacking Detections 24 | . 1 . 2 . . . 4 11 . . . . 6 . Full Trace Events 3 | . . . 1 . . . . 1 . . . . 1 . Feedback Events . | . . . . . . . . . . . . . . . Feedback Blocked . | . . . . . . . . . . . . . . . Robot Schematics Acquired 4 | . . . . . . . . . . . 4 . . . Robots Built . | . . . . . . . . . . . . . . . Authchips . | . . . . . . . . . . . . . . . Time . | . . . . . . . . . . . . . . . Total Robot Build Rating . | . . . . . . . . . . . . . . . Part Schematics Acquired 10 | . . . . . . . . . . . 9 . 1 . Parts Built 2 | . . . . . . . . . . . . . 2 . Authchips . | . . . . . . . . . . . . . . . Time 106 | . . . . . . . . . . . . . 106 . Total Part Build Rating 12 | . . . . . . . . . . . . . 12 . Parts Repaired . | . . . . . . . . . . . . . . . Time . | . . . . . . . . . . . . . . . Parts Recycled . | . . . . . . . . . . . . . . . Recycled Matter . | . . . . . . . . . . . . . . . Retrieved Matter . | . . . . . . . . . . . . . . . Retrieved Components . | . . . . . . . . . . . . . . . Parts Scanalyzed . | . . . . . . . . . . . . . . . Part Schematics Acquired . | . . . . . . . . . . . . . . . Parts Damaged . | . . . . . . . . . . . . . . . Bothacking | -11 -10 -10 -9 -9 -9 -8 -8 -7 -7 -7 -7 -6 -6 -6 ------------ Run | Yrd Mat Min Mat Min Exi Min Mat Fac Low Low Dat Pro Fac Was Used RIF Installer . | . . . . . . . . . . . . . . . Robots Hacked . | . . . . . . . . . . . . . . . Non-combat . | . . . . . . . . . . . . . . . Combat . | . . . . . . . . . . . . . . . Robot Hacks Applied . | . . . . . . . . . . . . . . . Relay Couplers Released . | . . . . . . . . . . . . . . . Fabnet Peak Effective % . | . . . . . . . . . . . . . . . Robots Rewired 1 | . . . . . . . . 1 . . . . . . Allies Hacked . | . . . . . . . . . . . . . . . Hacks Repelled . | . . . . . . . . . . . . . . . Allies | -11 -10 -10 -9 -9 -9 -8 -8 -7 -7 -7 -7 -6 -6 -6 -------- Run | Yrd Mat Min Mat Min Exi Min Mat Fac Low Low Dat Pro Fac Was Total Allies 4 | . . . . . . . . 4 . . . . . . Largest Group 4 | . . . . . . . . 4 . . . . . . Highest-Rated Group 114 | . . . . . . . . 114 . . . . . . Highest-Rated Ally 31 | . . . . . . . . 31 . . . . . . Total Orders . | . . . . . . . . . . . . . . . Ally Attacks 44 | . . . . . . . . 44 . . . . . . Total Damage 726 | . . . . . . . . 726 . . . . . . Kills 2 | . . . . . . . . 2 . . . . . . Allies Corrupted . | . . . . . . . . . . . . . . . Allies Melted 1 | . . . . . . . . 1 . . . . . . Intel | -11 -10 -10 -9 -9 -9 -8 -8 -7 -7 -7 -7 -6 -6 -6 ------- Run | Yrd Mat Min Mat Min Exi Min Mat Fac Low Low Dat Pro Fac Was Robot Analysis Total . | . . . . . . . . . . . . . . . Derelict Logs Recovered 3 | . . 1 . . . . . . . . . 2 . . Drone Launches . | . . . . . . . . . . . . . . . Drone Recoveries . | . . . . . . . . . . . . . . . Exploration | -11 -10 -10 -9 -9 -9 -8 -8 -7 -7 -7 -7 -6 -6 -6 ------------- Run | Yrd Mat Min Mat Min Exi Min Mat Fac Low Low Dat Pro Fac Was Turns Passed 7402 | 62 439 314 528 55 153 162 1737 2425 97 182 36 107 1031 74 Spaces Moved 6295 | 47 308 248 300 45 128 110 898 2341 206 404 80 225 832 123 Core 18 | 9 . . . . . . 6 . . . . . . 3 Treads 57 | . . . . . . . . 57 . . . . . . Legs 100 | 38 62 . . . . . . . . . . . . . Wheels 2256 | . 246 248 300 45 128 110 892 287 . . . . . . Hover 3864 | . . . . . . . . 1997 206 404 80 225 832 120 Flight . | . . . . . . . . . . . . . . . Fastest Speed 45 | 50 105 105 105 120 120 120 95 45 45 45 45 45 45 45 Average Speed 89 | 106 108 105 118 120 120 120 135 73 45 45 45 45 103 45 Slowest Speed 900 | 120 120 105 145 120 120 120 900 400 45 45 45 45 108 111 Overloaded Moves . | . . . . . . . . . . . . . . . Propulsion Burnouts . | . . . . . . . . . . . . . . . Robots Hopped . | . . . . . . . . . . . . . . . Cave-ins Triggered . | . . . . . . . . . . . . . . . Exploration Rate (%) 47 | 3 60 73 30 17 48 49 73 66 35 68 68 44 28 48 Regions Visited 14 Branch Regions 8 Pre-discovered Areas 4 | . . 1 . . 1 . . . . . 1 1 . . Known Exits Taken 6 | . . . . . . . 1 1 1 1 1 1 . . Unknown Exits Taken 7 | 1 1 1 1 1 1 1 . . . . . . . . Scrap Searched 5 | . . 2 . . . 1 . . 2 . . . . . Spaces Dug 53 | . . . . . . . . 41 . . . . 12 . Terrain Destroyed 148 | . . . 46 . . 13 18 46 . . . . 25 . Melee 46 | . . . . . . . . 39 . . . . 7 . Projectile 8 | . . . . . . . . 7 . . . . 1 . AOE 94 | . . . 46 . . 13 18 . . . . . 17 . Terrain Rammed . | . . . . . . . . . . . . . . . Walls Destroyed . | . . . . . . . . . . . . . . . Machines Disabled . | . . . . . . . . . . . . . . . Actions | -11 -10 -10 -9 -9 -9 -8 -8 -7 -7 -7 -7 -6 -6 -6 --------- Run | Yrd Mat Min Mat Min Exi Min Mat Fac Low Low Dat Pro Fac Was Total 7420 | 59 359 277 392 46 127 123 1217 2803 209 403 79 228 958 140 Wait 391 | . 8 5 26 . . . 114 189 1 . . . 47 1 Move 6282 | 46 307 247 299 44 127 109 897 2340 205 403 79 224 832 123 Hop . | . . . . . . . . . . . . . . . Pick Up 133 | 7 9 7 11 . . 3 40 36 2 . . . 15 3 Fast Attach 6 | . . . . . . . . 2 . . . . 2 2 Attach 68 | 6 2 3 9 . . . 13 23 . . . 1 8 3 Detach 13 | . . . . . . . . 8 . . . 1 4 . Swap 84 | . 2 . 5 1 . 2 12 47 1 . . . 11 3 Drop 80 | . 1 2 2 1 . 1 24 33 . . . . 11 5 Fire 290 | . 30 13 40 . . 8 116 69 . . . 2 12 . Melee 71 | . . . . . . . . 55 . . . . 16 . Ram 1 | . . . . . . . 1 . . . . . . . Kick . | . . . . . . . . . . . . . . . Crush . | . . . . . . . . . . . . . . . Escape Stasis . | . . . . . . . . . . . . . . . Rewire 1 | . . . . . . . . 1 . . . . . . Trap . | . . . . . . . . . . . . . . . Miscellaneous . | . . . . . . . . . . . . . . . Route ------- -11/Scrapyard -10/Materials (discovered 2 exits: *Mat / [*Min]) -10/Mines -9/Materials (discovered 2 exits: [*Min x2]) -9/Mines -9/Exiles -8/Mines -8/Materials (discovered 5 exits: *Fac x3 / *Sto x2) -7/Factory (discovered 6 exits: *Fac x4 / *Low x2) -7/Lower Caves -7/Lower Caves -7/Data Miner -6/Proximity Caves -6/Factory (discovered 3 exits: *Fac x2 / [*Ext]) -6/Waste History --------- Turn | Location | Event 15 | -11/Scrapyard | Discovered new exit (range 15) 63 | -11/Scrapyard | Entered Materials 129 | -10/Materials | Discovered new exit (range 15) 261 | -10/Materials | Discovered new exit (range 15) 317 | -10/Materials | Build established: Mutant 502 | -10/Materials | Entered Mines 655 | -10/Mines | YI-UF0 nonchalantly dropped a Grenade Launcher on the ground 717 | -10/Mines | Learned location of Storage (-8) 774 | -10/Mines | Discovered new exit (range 5) 816 | -10/Mines | Entered Materials 816 | -9/Materials | Evolved 2 slots: Utility x2 818 | -9/Materials | Discovered new exit (range 10) 899 | -9/Materials | Lost 4 parts (1p1n2u) 970 | -9/Materials | Lost 3 parts (1n1u1w) 1271 | -9/Materials | Discovered new exit (range 15) 1340 | -9/Materials | Build established: Scavenger-Mutant 1344 | -9/Materials | Entered Mines 1394 | -9/Mines | Deemed a non-threat by the Exiles lab entrance 1394 | -9/Mines | Discovered new exit (range 5) 1399 | -9/Mines | Entered Exiles 1428 | -9/Exiles | Met 8R-AWN 1449 | -9/Exiles | Met EX-HEX 1495 | -9/Exiles | Met EX-DEC 1503 | -9/Exiles | Learned location of Zion (-6) 1539 | -9/Exiles | Discovered new exit (range 11) 1552 | -9/Exiles | Entered Mines 1589 | -8/Mines | Core integrity fell below 50% 1699 | -8/Mines | Discovered new exit (range 13) 1714 | -8/Mines | Entered Materials 1714 | -8/Materials | Evolved 2 slots: Propulsion x2 1750 | -8/Materials | Discovered new exit (range 16) 1832 | -8/Materials | Identified exit to Storage 2024 | -8/Materials | Lost 4 parts (1p1n2u) 2060 | -8/Materials | Build established: Mutant 2360 | -8/Materials | Discovered new exit (range 7) 2402 | -8/Materials | Identified exit to Factory 2927 | -8/Materials | Lost 3 parts (1n1u1w) 3051 | -8/Materials | Discovered exit to Storage (range 9) 3128 | -8/Materials | Build established: Scavenger-Mutant 3451 | -8/Materials | Entered Factory 3451 | -7/Factory | Evolved 2 slots: Utility x2 3755 | -7/Factory | Discovered new exit (range 12) 3845 | -7/Factory | Lost 4 allies 4131 | -7/Factory | Build established: Mutant 4799 | -7/Factory | Build established: Scavenger-Scout 5597 | -7/Factory | Build established: Hacker-Mutant 5703 | -7/Factory | Identified exit to Factory 5703 | -7/Factory | Identified exit to Lower Caves 5876 | -7/Factory | Entered Lower Caves 5972 | -7/Lower Caves | Discovered new exit (range 4) 5973 | -7/Lower Caves | Identified exit to Lower Caves 5973 | -7/Lower Caves | Entered another Lower Caves area 6068 | -7/Lower Caves | Encountered a Warlord checkpoint 6150 | -7/Lower Caves | Discovered new exit (range 11) 6154 | -7/Lower Caves | Identified exit to Data Miner 6155 | -7/Lower Caves | Attracted the attention of an 0b10 checkpoint 6155 | -7/Lower Caves | Entered Data Miner 6155 | -7/Data Miner | Discovered new exit (range 7) 6159 | -7/Data Miner | Identified exit to Proximity Caves 6165 | -7/Data Miner | Met Data Miner 6174 | -7/Data Miner | Learned location of Section 7 (-3) 6174 | -7/Data Miner | Acquired the access code to Warlord's prototype stash 6181 | -7/Data Miner | Received God Mode back door access code from Data Miner 6191 | -7/Data Miner | Entered Proximity Caves 6194 | -6/Proximity Caves | Spotter reported a threat 6277 | -6/Proximity Caves | Learned location of 1 exit from Factory 6291 | -6/Proximity Caves | Discovered exit to Factory (range 16) 6298 | -6/Proximity Caves | Entered Factory 6298 | -6/Factory | Evolved 2 slots: Propulsion x2 6299 | -6/Factory | Identified exit to Factory 6354 | -6/Factory | Lost 3 parts (1p1n1u) 6606 | -6/Factory | Build established: Assassin 6772 | -6/Factory | Fabricated Antigrav System? 6812 | -6/Factory | Discovered exit to Factory (range 12) 6975 | -6/Factory | Build established: Hacker-Mutant 7268 | -6/Factory | Discovered new exit (range 13) 7329 | -6/Factory | Sucked down chute 7329 | -6/Factory | Entered Waste 7339 | -6/Waste | Found Prototype Device 7340 | -6/Waste | Identified System Purifier 7357 | -6/Waste | Spotted C-40 Crusher 7368 | -6/Waste | Spotted C-40 Crusher 7373 | -6/Waste | Spotted C-40 Crusher 7374 | -6/Waste | Spotted C-40 Crusher 7374 | -6/Waste | Spotted C-40 Crusher 7393 | -6/Waste | Crushed by Compactor (1 part destroyed, 2 dropped) 7394 | -6/Waste | Crushed by Compactor (1 part destroyed, 2 dropped) 7397 | -6/Waste | Crushed by Compactor (1 part destroyed, 1 dropped) 7400 | -6/Waste | Spotted C-40 Crusher 7400 | -6/Waste | Crushed by Compactor (1 part destroyed, 2 dropped) 7403 | -6/Waste | Crushed by Compactor (1 part destroyed, 2 dropped) 7403 | -6/Waste | Self-destructed Last Messages --------------- 07395_ Acquired Gravmag System. 07397_ Impact Mace crushed. 07397_ Cld. Airjet crushed. 07397_ Airjet crushed. 07397_ Gravmag System destroyed. 07398_ Imp. Sensor Array crushed. 07399_ Dropped Lrg. Storage Unit. 07400_ Matter Compressor crushed. 07400_ Hacking Suite crushed. 07400_ Transmission Jammer crushed. 07400_ Matter Filter crushed. 07400_ Imp. Sensor Array crushed. 07400_ Imp. Signal Interpreter crushed. 07400_ System Shield crushed. 07400_ Acquired Hacking Suite. 07402_ Imp. Cooling System crushed. 07402_ Gravmag System crushed. 07403_ Hacking Suite crushed. 07403_ Structural Scanner crushed. 07403_ Hacking Suite crushed. Map ----- +----------------------------------------------------+ | ?????????????????????????????????????????????????? | | ?????????????????????????????????????????????????? | | ?????????????????????????????????????????????????? | | ?????????????????????????????????????????????????? | | ?????????????????????????????????????????????????? | | ?????????????????????????????????????????????????? | | ?????????????????????????????????????????????????? | | ?????????######??????######??????????????????????? | | ?????????# #??????# #??????????????????????? | | ?????????# #??????#! ! #??????????????????????? | | ?????????# #?????## #??????????????????????? | | ?????????# #???#### #??????????????????????? | | ???????### =######## #??????????????????????? | | ???????# #??????????????????????? | | ???????# #??????????????????????? | | ???????# #??????????????????????? | | ???????# ##?????????????????????? | | ???????### ######## ##?????????????????????? | | ?????????# #?????## ##????????? ##?????????? | | ?????????# #?????## ##????????? ##?????????? | | ?????????# #?????## ######## ? ###????????? | | ???????### #?????## ######## ###????????? | | ???????# #?????## ????????? | | ???????# #?????## ????????? | | ???????# #?????## CC ????????? | | ???????# #?????## CC@CC ????????? | | ########## ! #?????## CC*######## ##?????????? | | ########?# #?????## ! ######## ? #??????????? | | ##?# #?????## CC=##??????????#??????????? | | #### ##????## CC!##?????????????????????? | | #### ! ##????## CC##?????????????????????? | | ##????## CC##?????????????????????? | | ! ##????## CC##?????????????????????? | | ] ##????##CCCC##?????????????????????? | | ##????##CC ##?????????????????????? | | #### ##????## ##?????????????????????? | | #### ##????## ##?????????????????????? | | ##?# ##????## ##?????????????????????? | | ########?# #?????## #??????????????????????? | | ########?# #????### ###????????????????????? | | ?????????######????# #????????????????????? | | ???????????????????# #????????????????????? | | ???????????????????# #????????????????????? | | ???????????????????# #????????????????????? | | ???????????????????# #????????????????????? | | ???????????????????# #????????????????????? | | ???????????????????# #????????????????????? | | ???????????????????#= #????????????????????? | | ???????????????????##########????????????????????? | | ?????????????????????????????????????????????????? | +----------------------------------------------------+ Best States ------------- Heat Dissipation 61 Energy Generation 18 Energy Capacity 240 Matter Stores 300 Matter Capacity 300 Sight Range 16 Robot Scan Range 15 Terrain Scan Density 10 Jamming Range 12 Additional Mass Support 12 Armor Coverage 300 Propulsion Shielding 66 Evasion (%) 56 Targeting Accuracy 8 Recoil Reduction 1 Offensive Hacking 10 Defensive Hacking 11 Item Schematics ----------------- Combat Drone Bay | -7/Data Miner | Free Lgt. Regenerative Plating | -7/Data Miner | Free Cld. Aerolev Unit | -7/Data Miner | Free Gravity Neutralizer | -7/Data Miner | Free Antimatter Cannon | -7/Data Miner | Free Antigrav System | -7/Data Miner | Free Imp. Coolant Injector | -7/Data Miner | Free Lance | -7/Data Miner | Free Phase Cannon | -7/Data Miner | Free Adv. Coolant Injector | -6/Factory | Hacked Robot Schematics ------------------ A-15 Conveyor | -7/Data Miner | Free R-10 Processor | -7/Data Miner | Free G-50 Soldier | -7/Data Miner | Free Y-54 Guardian | -7/Data Miner | Free Fabricated ------------ Antigrav System | x2 | -6/Factory Alien Tech Used ----------------- None Achievements -------------- None Challenges ------------ None Game ------ Seed DisposableFactoryLattice Manual? 0 Play Time 01:26:04 Cumulative 80.0 hours Start 2024.04.12 @ 12:07:52 End 2024.04.12 @ 13:41:38 Sessions 3 Manual Loads 0 Difficulty Rogue Special Mode None Game No. 90 Rogue 90 Adventurer 0 Explorer 0 Win Type - Total 1 Types 1/0/0/0/0/0/0/0/0 Lore% 41 Gallery% 46 Achievement% 43 Wizard Run 0 Options --------- Layout 1 ASCII 0 Keyboard 0 Movement Mouse Keybinds 0 Fullscreen 2 Font 32/Smallcaps Map View 50x40 Zoom Use 0% Tactical HUD 1 Map Filters NONE Filters NONE Steam 1 RUN: cf18cbc1-e50c-4738-99ed-1922d514ab87